fUSD/lending_fUSD_20240814
["ID","MTS","AMOUNT","RATE_DAILY","PERIOD"]
[334850372,1723609212538,-745.26,0.00013972,2]
[334850373,1723609212563,-533.91,0.00013972,2]
[334850374,1723609212586,-500.0,0.00013972,2]
[334850375,1723609212610,-500.0,0.00013972,2]
[334850376,1723609212632,-436.83642028,0.00013972,2]
[334850377,1723609212656,-500.0,0.00013972,2]
[334850378,1723609212679,-997.13,0.00013972,2]
[334850379,1723609212701,-500.0,0.00013972,2]
[334850380,1723609212723,-500.0,0.00013972,2]
[334850381,1723609212746,-500.0,0.00013972,2]
[334850382,1723609212769,-588.67,0.00013972,2]
[334850383,1723609212796,-654.68,0.00013972,2]
[334850384,1723609212819,-500.0,0.00013972,2]
[334850385,1723609212843,-500.0,0.00013972,2]
[334850386,1723609212866,-668.92,0.00013972,2]
[334850387,1723609212891,-500.0,0.00013972,2]
[334850388,1723609212913,-556.68,0.00013972,2]
[334850389,1723609212935,-1143.35,0.00013972,2]
[334850390,1723609212958,-500.0,0.00013972,2]
[334850391,1723609212981,-799.62,0.00013972,2]
[334850392,1723609213004,-681.24,0.00013972,2]
[334850393,1723609213027,-500.0,0.00013972,2]
[334850394,1723609213049,-1348.84,0.00013972,2]
[334850395,1723609213072,-1240.97,0.00013972,2]
[334850396,1723609213099,-500.0,0.00013972,2]
[334850397,1723609213122,-500.0,0.00013972,2]
[334850398,1723609213145,-500.0,0.00013972,2]
[334850399,1723609213167,-500.0,0.00013972,2]
[334850400,1723609213191,-1339.76,0.00013972,2]
[334850401,1723609213214,-500.0,0.00013972,2]
[334850402,1723609213240,-503.1,0.00013972,2]
[334850403,1723609213262,-500.0,0.00013972,2]
[334850404,1723609213285,-500.0,0.00013972,2]
[334850405,1723609213308,-500.0,0.00013972,2]
[334850406,1723609213338,-869.26,0.00013972,2]
[334850407,1723609213362,-701.92,0.00013972,2]
[334850408,1723609213383,-905.52,0.00013972,2]
[334850409,1723609213405,-500.0,0.00013972,2]
[334850410,1723609213426,-1174.64,0.00013972,2]
[334850411,1723609213448,-500.0,0.00013972,2]
[334850412,1723609213470,-1241.22,0.00013972,2]
[334850413,1723609213493,-500.0,0.00013972,2]
[334850414,1723609213516,-3625.12,0.00013972,2]
[334850415,1723609213539,-1418.48,0.00013972,2]
[334850416,1723609213562,-500.0,0.00013972,2]
[334850417,1723609213585,-500.0,0.00013972,2]
[334850418,1723609213610,-500.0,0.00013972,2]
[334850419,1723609213634,-500.0,0.00013972,2]
[334850420,1723609213658,-7001.51,0.00013972,2]
[334850421,1723609213681,-500.0,0.00013972,2]
[334850422,1723609213706,-533.09,0.00013972,2]
[334850423,1723609213729,-524.47,0.00013972,2]
[334850424,1723609213753,-500.0,0.00013972,2]
[334850425,1723609213777,-1669.5,0.00013972,2]
[334850426,1723609213804,-500.0,0.00013972,2]
[334850427,1723609213829,-500.0,0.00013972,2]
[334850428,1723609213860,-500.0,0.00013972,2]
[334850429,1723609213885,-500.0,0.00013972,2]
[334850430,1723609213910,-500.0,0.00013972,2]
[334850431,1723609213936,-1858.93,0.00013972,2]
[334850432,1723609213960,-500.0,0.00013972,2]
[334850433,1723609213983,-500.0,0.00013972,2]
[334850434,1723609214007,-500.0,0.00013972,2]
[334850435,1723609214031,-634.22,0.00013972,2]
[334850436,1723609214055,-559.52,0.00013972,2]
[334850437,1723609214079,-877.68,0.00013972,2]
[334850438,1723609214102,-1597.53,0.00013972,2]
[334850439,1723609214128,-541.08,0.00013972,2]
[334850440,1723609214153,-1066.44,0.00013972,2]
[334850441,1723609214322,-500.0,0.00013972,2]
[334850442,1723609214348,-500.0,0.00013972,2]
[334850443,1723609214371,-500.0,0.00013972,2]
[334850444,1723609214395,-500.0,0.00013972,2]
[334850445,1723609214418,-500.0,0.00013972,2]
[334850446,1723609214441,-1514.3,0.00013972,2]
[334850447,1723609214462,-500.0,0.00013972,2]
[334850448,1723609214485,-927.28,0.00013972,2]
[334850449,1723609214509,-500.0,0.00013972,2]
[334850450,1723609214533,-192.47642833,0.00013972,2]
[334850451,1723609214557,-500.0,0.00013972,2]
[334850452,1723609214581,-1364.28,0.00013972,2]
[334850453,1723609214605,-1113.45,0.00013972,2]
[334850454,1723609214628,-500.0,0.00013972,2]
[334850455,1723609214652,-500.0,0.00013972,2]
[334850456,1723609214676,-1130.83,0.00013972,2]
[334850457,1723609214700,-500.0,0.00013972,2]
[334850458,1723609214724,-2581.73,0.00013972,2]
[334850459,1723609214747,-2582.11,0.00013972,2]
[334850460,1723609214771,-500.0,0.00013972,2]
[334850461,1723609214795,-500.0,0.00013972,2]
[334850462,1723609214820,-2682.19,0.00013972,2]
[334850463,1723609214843,-825.16,0.00013972,2]
[334850464,1723609214869,-500.0,0.00013972,2]
[334850465,1723609214893,-747.63,0.00013972,2]
[334850466,1723609214916,-8390.78,0.00013972,2]
[334850467,1723609214940,-500.0,0.00013972,2]
[334850468,1723609214963,-500.0,0.00013972,2]
[334850469,1723609214987,-500.0,0.00013972,2]
[334850470,1723609215014,-1534.1,0.00013972,2]
[334850471,1723609215039,-8486.77,0.00013972,2]
[334850472,1723609215062,-500.0,0.00013972,2]
[334850473,1723609215088,-500.0,0.00013972,2]
[334850474,1723609215114,-500.0,0.00013972,2]
[334850475,1723609215138,-500.0,0.00013972,2]
[334850476,1723609215165,-800.73,0.00013972,2]
[334850477,1723609215190,-7852.59,0.00013972,2]
[334850478,1723609215213,-512.96,0.00013972,2]
[334850479,1723609215236,-604.97,0.00013972,2]
[334850480,1723609215261,-2178.76,0.00013972,2]
[334850481,1723609215284,-500.0,0.00013972,2]
[334850482,1723609215307,-500.0,0.00013972,2]
[334850483,1723609215331,-1007.38,0.00013972,2]
[334850484,1723609215355,-500.0,0.00013972,2]
[334850485,1723609215378,-500.0,0.00013972,2]
[334850486,1723609215402,-500.0,0.00013972,2]
[334850487,1723609215424,-500.0,0.00013972,2]
[334850488,1723609215447,-500.0,0.00013972,2]
[334850489,1723609215470,-500.0,0.00013972,2]
[334850490,1723609215494,-500.0,0.00013972,2]
[334850491,1723609215518,-1538.25,0.00013972,2]
[334850492,1723609215543,-1792.68,0.00013972,2]
[334850493,1723609215567,-825.54,0.00013972,2]
[334850494,1723609215591,-1839.37,0.00013972,2]
[334850495,1723609215616,-2146.49,0.00013972,2]
[334850496,1723609215639,-1111.82,0.00013972,2]
[334850497,1723609215663,-500.0,0.00013972,2]
[334850498,1723609215687,-935.68,0.00013972,2]
[334850499,1723609215710,-500.0,0.00013972,2]
[334850500,1723609215736,-1358.55,0.00013972,2]
[334850501,1723609215761,-500.0,0.00013972,2]
[334850502,1723609215785,-500.0,0.00013972,2]
[334850503,1723609215811,-700.59,0.00013972,2]
[334850504,1723609215836,-1748.13,0.00013972,2]
[334850505,1723609215862,-2860.93,0.00013972,2]
[334850506,1723609215891,-688.2,0.00013972,2]
[334850507,1723609215914,-1436.97,0.00013972,2]
[334850508,1723609215937,-500.0,0.00013972,2]
[334850509,1723609215962,-500.0,0.00013972,2]
[334850510,1723609215986,-500.0,0.00013972,2]
[334850511,1723609216009,-1026.46,0.00013972,2]
[334850512,1723609216034,-508.74,0.00013972,2]
[334850513,1723609216058,-682.21,0.00013972,2]
[334850514,1723609216080,-500.0,0.00013972,2]
[334850515,1723609216103,-966.26,0.00013972,2]
[334850516,1723609216126,-3216.29,0.00013972,2]
[334850517,1723609216155,-500.0,0.00013972,2]
[334850518,1723609216180,-500.0,0.00013972,2]
[334850519,1723609216206,-882.14,0.00013972,2]
[334850520,1723609216231,-2698.82,0.00013972,2]
[334850521,1723609216254,-500.0,0.00013972,2]
[334850522,1723609216278,-1654.4,0.00013972,2]
[334850523,1723609216302,-1849.14,0.00013972,2]
[334850524,1723609216325,-500.0,0.00013972,2]
[334850525,1723609216350,-2196.39,0.00013972,2]
[334850526,1723609216374,-500.0,0.00013972,2]
[334850527,1723609216398,-159.58231251,0.00013972,2]
[334850528,1723609216421,-2840.43,0.00013972,2]
[334850529,1723609216445,-500.0,0.00013972,2]
[334850530,1723609216468,-500.0,0.00013972,2]
[334850531,1723609216492,-500.0,0.00013972,2]
[334850532,1723609216516,-500.0,0.00013972,2]
[334850533,1723609216539,-1196.03,0.00013972,2]
[334850534,1723609216562,-165.27862783,0.00013972,2]
[334850535,1723609216584,-1083.05,0.00013972,2]
[334850536,1723609216609,-500.0,0.00013972,2]
[334850537,1723609216632,-950.09,0.00013972,2]
[334850538,1723609216656,-500.0,0.00013972,2]
[334850539,1723609216680,-981.09,0.00013972,2]
[334850540,1723609216704,-1686.4,0.00013972,2]
[334850541,1723609216730,-539.02,0.00013972,2]
[334850542,1723609216756,-1004.02,0.00013972,2]
[334850543,1723609216780,-1035.67,0.00013972,2]
[334850544,1723609216808,-1857.89,0.00013972,2]
[334850545,1723609216832,-500.0,0.00013972,2]
[334850546,1723609216857,-500.0,0.00013972,2]
[334850548,1723609217169,-500.0,0.00013972,2]
[334850549,1723609217192,-500.0,0.00013972,2]
[334850550,1723609217215,-500.0,0.00013972,2]
[334850551,1723609217238,-521.92,0.00013972,2]
[334850552,1723609217263,-883.37,0.00013972,2]
[334850553,1723609217288,-2083.4,0.00013972,2]
[334850554,1723609217312,-733.0,0.00013972,2]
[334850555,1723609217338,-1986.1,0.00013972,2]
[334850556,1723609217364,-500.0,0.00013972,2]
[334850557,1723609217389,-500.0,0.00013972,2]
[334850558,1723609217413,-500.0,0.00013972,2]
[334850559,1723609217438,-2126.72,0.00013972,2]
[334850560,1723609217463,-9765.5,0.00013972,2]
[334850561,1723609217488,-703.01,0.00013972,2]
[334850562,1723609217513,-500.0,0.00013972,2]
[334850563,1723609217538,-1151.01,0.00013972,2]
[334850564,1723609217562,-1606.16,0.00013972,2]
[334850565,1723609217586,-500.0,0.00013972,2]
[334850566,1723609217612,-4175.27,0.00013972,2]
[334850567,1723609217637,-2015.67,0.00013972,2]
[334850568,1723609217661,-500.0,0.00013972,2]
[334850569,1723609217686,-1621.44,0.00013972,2]
[334850570,1723609217710,-1055.94,0.00013972,2]
[334850571,1723609217735,-500.0,0.00013972,2]
[334850572,1723609217759,-500.0,0.00013972,2]
[334850573,1723609217784,-500.0,0.00013972,2]
[334850574,1723609217819,-500.0,0.00013972,2]
[334850575,1723609217845,-500.0,0.00013972,2]
[334850576,1723609217872,-1878.21,0.00013972,2]
[334850577,1723609217897,-527.36,0.00013972,2]
[334850578,1723609217923,-500.0,0.00013972,2]
[334850579,1723609217947,-3669.15,0.00013972,2]
[334850580,1723609217971,-4227.36,0.00013972,2]
[334850581,1723609217996,-500.0,0.00013972,2]
[334850582,1723609218021,-500.0,0.00013972,2]
[334850583,1723609218046,-1913.95,0.00013972,2]
[334850584,1723609218071,-500.0,0.00013972,2]
[334850585,1723609218095,-2196.21,0.00013972,2]
[334850586,1723609218120,-1049.96,0.00013972,2]
[334850587,1723609218144,-1586.3,0.00013972,2]
[334850588,1723609218169,-500.0,0.00013972,2]
[334850589,1723609218194,-500.0,0.00013972,2]
[334850590,1723609218217,-500.0,0.00013972,2]
[334850591,1723609218240,-500.0,0.00013972,2]
[334850592,1723609218264,-1655.54,0.00013972,2]
[334850593,1723609218289,-1967.05,0.00013972,2]
[334850594,1723609218315,-616.6,0.00013972,2]
[334850595,1723609218340,-645.21,0.00013972,2]
[334850596,1723609218367,-1398.84,0.00013972,2]
[334850597,1723609218393,-646.22,0.00013972,2]
[334850598,1723609218418,-1874.06,0.00013972,2]
[334850599,1723609218442,-500.0,0.00013972,2]
[334850600,1723609218467,-2252.71,0.00013972,2]
[334850601,1723609218491,-2568.33,0.00013972,2]
[334850602,1723609218516,-157.358674,0.00013972,2]
[334850603,1723609218544,-151.172284,0.00013972,2]
[334850604,1723609218569,-1898.78,0.00013972,2]
[334850605,1723609218594,-880.31,0.00013972,2]
[334850606,1723609218620,-500.0,0.00013972,2]
[334850607,1723609218644,-939.21,0.00013972,2]
[334850608,1723609218668,-3026.03,0.00013972,2]
[334850609,1723609218693,-500.0,0.00013972,2]
[334850610,1723609218717,-1232.67,0.00013972,2]
[334850611,1723609218742,-4762.24,0.00013972,2]
[334850612,1723609218768,-3936.56,0.00013972,2]
[334850613,1723609218795,-500.0,0.00013972,2]
[334850614,1723609218820,-1294.46,0.00013972,2]
[334850615,1723609218848,-500.0,0.00013972,2]
[334850616,1723609218874,-500.0,0.00013972,2]
[334850617,1723609218900,-743.81,0.00013972,2]
[334850618,1723609218923,-4450.65,0.00013972,2]
[334850619,1723609218949,-2336.52,0.00013972,2]
[334850620,1723609218973,-16586.23,0.00013972,2]
[334850621,1723609218997,-500.0,0.00013972,2]
[334850622,1723609219023,-951.77,0.00013972,2]
[334850623,1723609219047,-575.87,0.00013972,2]
[334850624,1723609219071,-564.27,0.00013972,2]
[334850625,1723609219096,-500.0,0.00013972,2]
[334850626,1723609219126,-500.0,0.00013972,2]
[334850627,1723609219150,-501.2,0.00013972,2]
[334850628,1723609219174,-1160.3,0.00013972,2]
[334850629,1723609219196,-1566.64,0.00013972,2]
[334850630,1723609219220,-1641.11,0.00013972,2]
[334850631,1723609219244,-2007.46,0.00013972,2]
[334850632,1723609219269,-1637.64,0.00013972,2]
[334850633,1723609219294,-710.11,0.00013972,2]
[334850634,1723609219319,-892.02,0.00013972,2]
[334850635,1723609219343,-2517.84,0.00013972,2]
[334850636,1723609219369,-1399.57,0.00013972,2]
[334850637,1723609219393,-500.0,0.00013972,2]
[334850638,1723609219416,-500.0,0.00013972,2]
[334850639,1723609219439,-500.0,0.00013972,2]
[334850640,1723609219462,-572.92,0.00013972,2]
[334850641,1723609219485,-500.0,0.00013972,2]
[334850642,1723609219510,-500.0,0.00013972,2]
[334850643,1723609219600,-500.0,0.00013972,2]
[334850644,1723609219626,-1449.29,0.00013972,2]
[334850645,1723609219650,-532.67,0.00013972,2]
[334850646,1723609219673,-500.0,0.00013972,2]
[334850647,1723609219698,-3966.9,0.00013972,2]
[334850648,1723609219723,-500.0,0.00013972,2]
[334850649,1723609219747,-500.0,0.00013972,2]
[334850650,1723609219770,-2428.68,0.00013972,2]
[334850651,1723609219796,-500.0,0.00013972,2]
[334850652,1723609219820,-1115.62,0.00013972,2]
[334850653,1723609219845,-500.0,0.00013972,2]
[334850654,1723609219874,-2190.47,0.00013972,2]
[334850655,1723609219899,-1243.67,0.00013972,2]
[334850656,1723609219923,-1029.48,0.00013972,2]
[334850657,1723609219949,-500.0,0.00013972,2]
[334850658,1723609219975,-1541.44,0.00013972,2]
[334850659,1723609220000,-661.61,0.00013972,2]
[334850660,1723609220025,-6008.09,0.00013972,2]
[334850661,1723609220049,-1951.14,0.00013972,2]
[334850662,1723609220075,-4366.49,0.00013972,2]
[334850663,1723609220100,-500.0,0.00013972,2]
[334850664,1723609220124,-838.15,0.00013972,2]
[334850665,1723609220149,-632.46,0.00013972,2]
[334850666,1723609220174,-11198.84,0.00013972,2]
[334850667,1723609220199,-2781.56,0.00013972,2]
[334850668,1723609220224,-681.85,0.00013972,2]
[334850669,1723609220248,-500.0,0.00013972,2]
[334850670,1723609220273,-562.14,0.00013972,2]
[334850671,1723609220298,-3127.74,0.00013972,2]
[334850672,1723609220322,-735.43,0.00013972,2]
[334850673,1723609220347,-3833.06,0.00013972,2]
[334850674,1723609220372,-500.0,0.00013972,2]
[334850675,1723609220396,-924.42,0.00013972,2]
[334850676,1723609220421,-12998.59,0.00013972,2]
[334850677,1723609220445,-1045.1,0.00013972,2]
[334850678,1723609220469,-2189.92,0.00013972,2]
[334850679,1723609220494,-500.0,0.00013972,2]
[334850680,1723609220518,-3646.06,0.00013972,2]
[334850681,1723609220542,-500.0,0.00013972,2]
[334850682,1723609220567,-5256.33,0.00013972,2]
[334850683,1723609220593,-500.0,0.00013972,2]
[334850684,1723609220619,-391.3888732,0.00013972,2]
[334850685,1723609220642,-500.0,0.00013972,2]
[334850686,1723609220664,-656.93,0.00013972,2]
[334850687,1723609220688,-569.69,0.00013972,2]
[334850688,1723609220714,-679.38,0.00013972,2]
[334850689,1723609220739,-500.0,0.00013972,2]
[334850690,1723609220764,-500.0,0.00013972,2]
[334850691,1723609220792,-2016.25,0.00013972,2]
[334850692,1723609220817,-500.0,0.00013972,2]
[334850693,1723609220840,-8323.81,0.00013972,2]
[334850694,1723609220866,-5332.49,0.00013972,2]
[334850695,1723609220889,-1757.36,0.00013972,2]
[334850696,1723609220912,-500.0,0.00013972,2]
[334850697,1723609220935,-996.84,0.00013972,2]
[334850698,1723609220958,-500.0,0.00013972,2]
[334850699,1723609220981,-2074.06,0.00013972,2]
[334850700,1723609221005,-3040.11,0.00013972,2]
[334850701,1723609221030,-1227.7,0.00013972,2]
[334850702,1723609221054,-500.0,0.00013972,2]
[334850703,1723609221079,-6023.91,0.00013972,2]
[334850704,1723609221104,-1957.13,0.00013972,2]
[334850705,1723609221128,-500.0,0.00013972,2]
[334850706,1723609221151,-500.0,0.00013972,2]
[334850707,1723609221175,-900.77,0.00013972,2]
[334850708,1723609221199,-500.0,0.00013972,2]
[334850709,1723609221225,-8294.22,0.00013972,2]
[334850710,1723609221250,-3129.87,0.00013972,2]
[334850711,1723609221273,-1358.76,0.00013972,2]
[334850712,1723609221298,-500.0,0.00013972,2]
[334850713,1723609221328,-500.0,0.00013972,2]
[334850714,1723609221354,-1744.71,0.00013972,2]
[334850715,1723609221376,-500.0,0.00013972,2]
[334850716,1723609221398,-1603.75,0.00013972,2]
[334850717,1723609221423,-500.0,0.00013972,2]
[334850718,1723609221448,-993.13,0.00013972,2]
[334850719,1723609221472,-1346.19,0.00013972,2]
[334850720,1723609221496,-500.0,0.00013972,2]
[334850721,1723609221520,-3087.75,0.00013972,2]
[334850722,1723609221544,-571.62,0.00013972,2]
[334850723,1723609221567,-1158.91,0.00013972,2]
[334850724,1723609221593,-4247.54,0.00013972,2]
[334850725,1723609221619,-38381.14,0.00013972,2]
[334850726,1723609221643,-2715.08,0.00013972,2]
[334850727,1723609221666,-1990.94,0.00013972,2]
[334850728,1723609221692,-530.52,0.00013972,2]
[334850729,1723609221716,-879.45,0.00013972,2]
[334850730,1723609221740,-1138.63,0.00013972,2]
[334850731,1723609221766,-500.0,0.00013972,2]
[334850732,1723609221791,-7093.51,0.00013972,2]
[334850733,1723609221820,-504.98421748,0.00013972,2]
[334850734,1723609221845,-1572.98,0.00013972,2]
[334850735,1723609221870,-500.0,0.00013972,2]
[334850736,1723609221896,-1434.4,0.00013972,2]
[334850737,1723609221922,-867.04,0.00013972,2]
[334850738,1723609221950,-500.0,0.00013972,2]
[334850739,1723609221974,-500.0,0.00013972,2]
[334850740,1723609221997,-500.0,0.00013972,2]
[334850741,1723609222025,-69753.86,0.00013972,2]
[334850742,1723609222051,-8720.87,0.00013972,2]
[334850743,1723609222077,-500.0,0.00013972,2]
[334850744,1723609222100,-1184.63,0.00013972,2]
[334850745,1723609222125,-570.91,0.00013972,2]
[334850746,1723609222151,-2160.46,0.00013972,2]
[334850747,1723609222176,-989.17,0.00013972,2]
[334850748,1723609222200,-2324.14,0.00013972,2]
[334850749,1723609222229,-5241.3,0.00013972,2]
[334850750,1723609222256,-500.0,0.00013972,2]
[334850751,1723609222279,-1186.27,0.00013972,2]
[334850752,1723609222303,-500.0,0.00013972,2]
[334850753,1723609222328,-1564.81,0.00013972,2]
[334850754,1723609222353,-3581.0,0.00013972,2]
[334850755,1723609222377,-4206.86,0.00013972,2]
[334850756,1723609222400,-500.0,0.00013972,2]
[334850757,1723609222424,-2690.01,0.00013972,2]
[334850758,1723609222448,-2665.95,0.00013972,2]
[334850759,1723609222471,-500.0,0.00013972,2]
[334850760,1723609222494,-500.0,0.00013972,2]
[334850761,1723609222517,-2466.28,0.00013972,2]
[334850762,1723609222542,-500.0,0.00013972,2]
[334850763,1723609222568,-1867.57,0.00013972,2]
[334850764,1723609222591,-1273.12,0.00013972,2]
[334850765,1723609222618,-618.85,0.00013972,2]
[334850766,1723609222641,-629.81,0.00013972,2]
[334850767,1723609222664,-500.0,0.00013972,2]
[334850768,1723609222688,-1142.69,0.00013972,2]
[334850769,1723609222711,-500.0,0.00013972,2]
[334850770,1723609222737,-787.73,0.00013972,2]
[334850771,1723609222763,-500.0,0.00013972,2]
[334850772,1723609222788,-840.85,0.00013972,2]
[334850773,1723609222815,-500.0,0.00013972,2]
[334850774,1723609222841,-7816.31,0.00013972,2]
[334850775,1723609222866,-12568.37,0.00013972,2]
[334850776,1723609222891,-500.0,0.00013972,2]
[334850777,1723609222913,-1525.24,0.00013972,2]
[334850778,1723609222934,-500.0,0.00013972,2]
[334850779,1723609222957,-500.0,0.00013972,2]
[334850780,1723609222980,-858.4,0.00013972,2]
[334850781,1723609223002,-816.91,0.00013972,2]
[334850782,1723609223025,-1315.34,0.00013972,2]
[334850783,1723609223047,-500.0,0.00013972,2]
[334850784,1723609223069,-1276.73,0.00013972,2]
[334850785,1723609223092,-500.0,0.00013972,2]
[334850786,1723609223116,-500.0,0.00013972,2]
[334850787,1723609223138,-742.37,0.00013972,2]
[334850788,1723609223161,-2161.83,0.00013972,2]
[334850789,1723609223183,-500.0,0.00013972,2]
[334850790,1723609223207,-4222.97,0.00013972,2]
[334850791,1723609223231,-1352.15,0.00013972,2]
[334850792,1723609223253,-790.59,0.00013973,2]
[334850793,1723609223276,-547.92995912,0.00013979,2]
[334850794,1723609223299,-1042.07491144,0.00013989,2]
[334850795,1723609223321,-1042.07491144,0.00013996,2]
[334850796,1723609223474,-155.0,0.00013996,2]
[334850797,1723609223499,-155.0,0.00013996,2]
[334850798,1723609223523,-1003.458315,0.00014,2]
[334850799,1723609224059,500.0,0.00013698,2]
[334850800,1723609224119,500.0,0.00013972,2]
[334850801,1723609224151,522.88,0.00013698,2]
[334850802,1723609224217,522.88,0.00013972,2]
[334850803,1723609224854,500.0,0.00013698,2]
[334850804,1723609224892,500.0,0.00013972,2]
[334850805,1723609225469,682.41,0.00013698,2]
[334850806,1723609225501,682.41,0.00013972,2]
[334850807,1723609226083,2500.0,0.00013598,2]
[334850808,1723609226126,1020.28,0.00013698,2]
[334850809,1723609226183,1020.28,0.00013972,2]
[334850810,1723609226585,501.22080292,0.00013698,2]
[334850811,1723609226628,505.65,0.00013698,2]
[334850812,1723609226722,505.65,0.00013972,2]
[334850813,1723609227052,823.18,0.00013698,2]
[334850814,1723609227258,823.18,0.00013972,2]
[334850815,1723609227299,697.5,0.00013698,2]
[334850816,1723609227439,697.5,0.00013972,2]
[334850817,1723609227493,529.49,0.00013698,2]
[334850818,1723609227621,529.49,0.00013972,2]
[334850819,1723609227906,495.0,0.00013697,2]
[334850820,1723609227943,507.9444983,0.00013698,2]
[334850821,1723609227970,500.0,0.00013698,2]
[334850822,1723609228095,500.0,0.00013972,2]
[334850823,1723609228253,547.92995912,0.00013899,2]
[334850824,1723609228381,500.0,0.00013698,2]
[334850825,1723609228426,500.0,0.00013972,2]
[334850826,1723609228462,500.0,0.00013698,2]
[334850827,1723609228590,500.0,0.00013972,2]
[334850828,1723609228629,2411.49,0.00013698,2]
[334850829,1723609228683,2411.49,0.00013972,2]
[334850830,1723609229223,500.0,0.00013698,2]
[334850831,1723609229437,500.0,0.00013972,2]
[334850832,1723609229476,500.0,0.00013698,2]
[334850833,1723609229505,500.0,0.00013698,2]
[334850834,1723609229631,500.0,0.00013972,2]
[334850835,1723609229666,500.0,0.00013698,2]
[334850836,1723609229714,500.0,0.00013972,2]
[334850837,1723609229899,529.04,0.00013698,2]
[334850838,1723609230025,529.04,0.00013972,2]
[334850839,1723609230206,500.34,0.00013698,2]
[334850840,1723609230328,500.34,0.00013972,2]
[334850841,1723609230447,500.0,0.00013698,2]
[334850842,1723609230725,313.13086782,0.00013698,2]
[334850843,1723609230859,500.0,0.00013698,2]
[334850844,1723609230896,500.0,0.00013972,2]
[334850845,1723609230979,2956.7,0.00013333,2]
[334850846,1723609231392,500.0,0.00013698,2]
[334850847,1723609231437,641.47975282,0.00013972,2]
[334850848,1723609231809,450.02385773,0.00013333,2]
[334850849,1723609231915,500.0,0.00013698,2]
[334850850,1723609232040,500.0,0.00013698,2]
[334850851,1723609232068,501.80284095,0.00013698,2]
[334850852,1723609232099,500.0,0.00013972,2]
[334850853,1723609232847,547.92995912,0.00013899,2]
[334850854,1723609232879,1026.61,0.00013698,2]
[334850855,1723609232907,500.0,0.00013698,2]
[334850856,1723609233010,1026.61,0.00013972,2]
[334850857,1723609233041,500.0,0.00013972,2]
[334850859,1723609233900,1426.92,0.00013698,2]
[334850860,1723609233929,934.99,0.00013698,2]
[334850861,1723609233957,1176.39,0.00013698,2]
[334850862,1723609233984,1426.92,0.00013972,2]
[334850863,1723609234334,1176.39,0.00013972,2]
[334850864,1723609234759,934.99,0.00013972,2]
[334850865,1723609234797,500.0,0.00013698,2]
[334850866,1723609234930,500.0,0.00013972,2]
[334850867,1723609234965,1532.47,0.00013698,2]
[334850869,1723609235171,1532.47,0.00013972,2]
[334850870,1723609235376,1110.01,0.00013698,2]
[334850871,1723609235428,3098.03,0.00013698,2]
[334850872,1723609235572,1110.01,0.00013972,2]
[334850873,1723609235607,3098.03,0.00013972,2]
[334850874,1723609235667,500.0,0.00013698,2]